fUST/lending_fUST_20250930
["ID","MTS","AMOUNT","RATE_DAILY","PERIOD"]
[388442639,1759169586930,-1677.73080454,0.00023425,2]
[388442640,1759169586959,-480.0,0.00023425,2]
[388442641,1759169587085,-174.00897462,0.00023333,2]
[388442642,1759169587118,-767.83,0.00023425,2]
[388442643,1759169587147,-480.0,0.00023425,2]
[388442644,1759169587176,-480.0,0.00023425,2]
[388442645,1759169587207,-1634.06,0.00023425,2]
[388442646,1759169587236,-881.52,0.00023425,2]
[388442647,1759169587268,-581.21205076,0.00023425,2]
[388442648,1759169587480,-2.74794924,0.00023425,2]
[388442649,1759169587509,-1669.6,0.00023425,2]
[388442650,1759169587537,-480.0,0.00023425,2]
[388442651,1759169587563,-1788.55,0.00023425,2]
[388442652,1759169587710,-4029.37,0.00023425,2]
[388442653,1759169587915,-480.0,0.00023425,2]
[388442654,1759169587943,-441.34,0.00023425,2]
[388442655,1759169588339,-98.59,0.00023425,2]
[388442656,1759169588349,-651.35,0.00023425,2]
[388442657,1759169588359,-480.0,0.00023425,2]
[388442658,1759169588368,-305.2594163,0.00023425,2]
[388442659,1759169588385,-433.0005837,0.00023425,2]
[388442660,1759169588394,-46.9994163,0.00023425,2]
[388442661,1759169588414,-539.93,0.00023425,2]
[388442662,1759169596887,-576.43,0.00023424,2]
[388442663,1759169596917,-1196.7205837,0.00023425,2]
[388442664,1759169596945,-2067.68,0.00023425,2]
[388442665,1759169596972,-480.0,0.00023425,2]
[388442666,1759169597000,-480.0,0.00023425,2]
[388442667,1759169597181,-398.3488326,0.00023425,2]
[388442668,1759169617561,-10000.01,0.00023335,2]
[388442669,1759169617694,-10000.01,0.00023335,2]
[388442670,1759169626779,-10000.01,0.00023335,2]
[388442671,1759169636907,-10000.01,0.00023335,2]
[388442672,1759169637209,-10000.01,0.00023335,2]
[388442673,1759169637573,-10000.01,0.00023335,2]
[388442674,1759169656847,-400.0,0.00021793,2]
[388442675,1759169656875,-300.0,0.00023334,2]
[388442676,1759169656921,-8600.01,0.00023335,2]
[388442677,1759169657040,-10000.01,0.00023335,2]
[388442678,1759169657186,-10000.01,0.00023335,2]
[388442679,1759169657310,-10000.01,0.00023335,2]
[388442682,1759169686950,-400.0,0.00023163,2]
[388442683,1759169686982,-248.90214496,0.00023324,2]
[388442684,1759169687010,-1465.06768926,0.00023324,2]
[388442685,1759169687039,-1804.10033156,0.00023325,3]
[388442686,1759169687111,-2163.86966844,0.00023325,3]
[388442687,1759169697703,-581.67923536,0.00023334,2]
[388442688,1759169697737,-246.67978409,0.00023334,2]
[388442689,1759169697803,-1983.99,0.00023325,3]
[388442690,1759169697815,-6359.3019611,0.00023335,2]
[388442691,1759169716959,-168.0,0.00023131,2]
[388442692,1759169716992,-991.99,0.00023325,3]
[388442693,1759169717021,-300.0,0.00023334,2]
[388442694,1759169717050,-300.0,0.00023334,2]
[388442695,1759169717080,-300.0,0.00023334,2]
[388442696,1759169717321,-300.0,0.00023334,2]
[388442697,1759169717352,-1200.0,0.00023334,2]
[388442698,1759169717379,-503.52,0.00023334,2]
[388442699,1759169717410,-500.0,0.00023334,2]
[388442700,1759169717584,-872.99,0.00023335,2]
[388442701,1759169727104,-168.0,0.00022651,2]
[388442702,1759169727135,-168.0,0.0002278,2]
[388442703,1759169727163,-496.0,0.00023325,3]
[388442704,1759169727234,-8336.01,0.00023335,2]
[388442705,1759169737008,-248.0,0.00023325,3]
[388442706,1759169737035,-957.53,0.00023334,2]
[388442707,1759169737062,-160.0,0.00023334,2]
[388442708,1759169737089,-480.0,0.00023334,2]
[388442709,1759169737232,-6308.95,0.00023335,2]
[388442710,1759169747014,-331.890771,0.00022426,2]
[388442711,1759169747043,-744.02,0.00023325,3]
[388442712,1759169747072,-480.0,0.00023334,2]
[388442713,1759169747099,-480.0,0.00023334,2]
[388442714,1759169747130,-480.0,0.00023334,2]
[388442715,1759169747228,-4968.188458,0.00023335,2]
[388442716,1759169757123,-480.0,0.00023334,2]
[388442717,1759169757162,-480.0,0.00023334,2]
[388442718,1759169757195,-480.0,0.00023334,2]
[388442719,1759169757266,-7120.01,0.00023335,2]
[388442720,1759169774044,-164.41671896,0.00021793,2]
[388442721,1759169774074,-407.55143781,0.00023334,2]
[388442722,1759169774101,-480.0,0.00023334,2]
[388442723,1759169774125,-300.0,0.00023334,2]
[388442724,1759169774149,-480.0,0.00023334,2]
[388442725,1759169774174,-480.0,0.00023334,2]
[388442726,1759169774279,-5376.07368646,0.00023335,2]
[388442727,1759169782033,-480.0,0.00023334,2]
[388442728,1759169782062,-610.32,0.00023334,2]
[388442729,1759169782091,-480.0,0.00023334,2]
[388442730,1759169782162,-6859.37,0.00023335,2]
[388442732,1759169792274,-480.0,0.00023334,2]
[388442733,1759169792300,-480.0,0.00023334,2]
[388442734,1759169792327,-480.0,0.00023334,2]
[388442735,1759169792353,-480.0,0.00023334,2]
[388442736,1759169792383,-500.0,0.00023334,2]
[388442737,1759169792504,-500.0,0.00023334,2]
[388442738,1759169792514,-4660.01,0.00023335,2]
[388442739,1759169802073,-866.39736274,0.00023101,13]
[388442740,1759169802100,-303.98594967,0.00023334,2]
[388442741,1759169802130,-480.0,0.00023334,2]
[388442742,1759169802157,-702.32,0.00023334,2]
[388442743,1759169802185,-480.0,0.00023334,2]
[388442744,1759169802215,-565.7869822,0.00023334,2]
[388442745,1759169802244,-500.0,0.00023334,2]
[388442746,1759169802378,-2203.02941078,0.00023335,2]
[388442748,1759169822211,-407.29495577,0.00023101,13]
[388442749,1759169822239,-618.91,0.00023334,2]
[388442750,1759169822268,-480.0,0.00023334,2]
[388442751,1759169822295,-480.0,0.00023334,2]
[388442752,1759169822324,-1020.06,0.00023334,2]
[388442753,1759169822353,-612.25,0.00023334,2]
[388442754,1759169822381,-480.0,0.00023334,2]
[388442755,1759169822530,-1802.98008846,0.00023334,2]
[388442756,1759169832117,-300.0,0.00023333,2]
[388442757,1759169832147,-445.22991154,0.00023334,2]
[388442758,1759169832173,-480.0,0.00023334,2]
[388442759,1759169832199,-480.0,0.00023334,2]
[388442760,1759169832227,-3031.29017692,0.00023334,2]
[388442761,1759169832520,-526.96982308,0.00023334,2]
[388442762,1759169842055,167.243571,0.00011201,2]
[388442763,1759169842398,-1200.0,0.00023333,2]
[388442764,1759169842426,-256.50838644,0.00023334,2]
[388442765,1759169842454,-495.43616252,0.00023334,2]
[388442766,1759169842486,-480.17,0.00023334,2]
[388442767,1759169842517,-480.0,0.00023334,2]
[388442768,1759169842552,-480.0,0.00023334,2]
[388442769,1759169842583,-480.0,0.00023334,2]
[388442770,1759169842614,-480.0,0.00023334,2]
[388442771,1759169842647,-386.06703618,0.00023334,2]
[388442773,1759169842675,-43.64682972,0.00023334,2]
[388442776,1759169843091,-436.35317028,0.00023334,2]
[388442777,1759169843122,-518.21598988,0.00023334,2]
[388442778,1759169843152,-480.0,0.00023334,2]
[388442779,1759169843179,-480.0,0.00023334,2]
[388442780,1759169843210,-500.0,0.00023334,2]
[388442783,1759169843569,-500.0,0.00023335,2]
[388442784,1759169843594,-5170.87167968,0.00023335,2]
[388442785,1759169843614,-10000.01,0.00023335,2]
[388442786,1759169843644,-10000.01,0.00023335,2]
[388442791,1759169852135,-492.41258199,0.00023334,2]
[388442792,1759169852163,-480.0,0.00023334,2]
[388442793,1759169852191,-480.0,0.00023334,2]
[388442794,1759169852421,-480.0,0.00023334,2]
[388442795,1759169852448,-480.0,0.00023334,2]
[388442796,1759169852609,-5175.18483602,0.00023335,2]
[388442797,1759169862129,-480.0,0.00023334,2]
[388442798,1759169862164,-572.11,0.00023334,2]
[388442799,1759169862197,-620.75,0.00023334,2]
[388442800,1759169862237,-1368.88,0.00023334,2]
[388442801,1759169862271,-480.0,0.00023334,2]
[388442802,1759169862399,-3769.66,0.00023334,2]
[388442803,1759169862533,-2956.53,0.00023335,2]
[388442804,1759169862567,-2460.69,0.00023335,2]
[388442805,1759169862598,-10000.01,0.00023335,2]
[388442807,1759169872302,-500.0,0.00023334,2]
[388442808,1759169872329,-500.0,0.00023334,2]
[388442809,1759169872356,-500.0,0.00023334,2]
[388442810,1759169872383,-480.0,0.00023334,2]
[388442811,1759169872410,-500.0,0.00023334,2]
[388442812,1759169872438,-500.0,0.00023334,2]
[388442813,1759169872465,-500.0,0.00023334,2]
[388442814,1759169872492,-500.0,0.00023334,2]
[388442815,1759169872521,-500.0,0.00023334,2]
[388442816,1759169872708,-500.0,0.00023334,2]
[388442817,1759169872717,-540.01,0.00023335,2]
[388442818,1759169872842,-500.0,0.00023334,2]
[388442819,1759169872882,-9500.01,0.00023335,2]
[388442820,1759169872900,-500.0,0.00023335,2]
[388442821,1759169872914,-9000.01,0.00023335,2]
[388442822,1759169882199,-500.0,0.00023334,2]
[388442823,1759169882228,-500.0,0.00023334,2]
[388442824,1759169882259,-940.36,0.00023334,2]
[388442825,1759169882287,-500.0,0.00023334,2]
[388442826,1759169882376,-5119.29,0.00023335,2]
[388442827,1759169882400,-10000.01,0.00023335,2]
[388442828,1759169882473,-300.0,0.00023334,2]
[388442829,1759169882511,-9400.01,0.00023335,2]
[388442830,1759169892209,-196.326481,0.00022429,2]
[388442831,1759169892237,-480.0,0.00023334,2]
[388442832,1759169892265,-480.0,0.00023334,2]
[388442833,1759169892309,-538.1,0.00023334,2]
[388442834,1759169892349,-480.0,0.00023334,2]
[388442835,1759169892463,-5651.157038,0.00023335,2]
[388442836,1759169892482,-10000.01,0.00023335,2]
[388442837,1759169892523,-10000.01,0.00023335,2]
[388442838,1759169892676,-10000.01,0.00023335,2]
[388442857,1759170202917,-1420.67604026,0.00021693,2]
[388442858,1759170202945,-396.53153225,0.00021693,2]
[388442859,1759170202973,-150.0,0.00021793,2]
[388442860,1759170202999,-2023.7900081,0.0002226,2]
[388442861,1759170203094,-2018.01483878,0.0002299,2]
[388442862,1759170203165,-1650.24709393,0.0002299,2]
[388442863,1759170203207,-637.29920842,0.00023218,2]
[388442864,1759170203239,-151.0,0.00023321,2]
[388442865,1759170203284,-500.0,0.00023321,2]
[388442866,1759170203322,-481.94443751,0.00023321,2]
[388442867,1759170203358,-1200.0,0.00023323,2]
[388442868,1759170203393,-300.0,0.00023323,2]
[388442869,1759170203570,-824.52,0.00023323,10]
[388442870,1759170203605,-300.0,0.00023324,2]
[388442871,1759170203641,-1200.0,0.00023324,2]
[388442872,1759170203795,-159.02852028,0.00023324,2]
[388442873,1759170203811,-5350.97,0.00023324,2]
[388442874,1759170203843,-10000.01,0.00023324,2]
[388442875,1759170203863,-10000.01,0.00023324,2]
[388442876,1759170203891,-10000.01,0.00023324,2]
[388442877,1759170204236,-10000.01,0.00023324,2]
[388442878,1759170204273,-4489.96147972,0.00023324,2]
[388442879,1759170204409,-1020.08704056,0.00023325,2]
[388442880,1759170204444,-1207.37561614,0.00023325,2]
[388442881,1759170204469,-7585.25876772,0.00023325,2]
[388442882,1759170204503,-160.0,0.00023328,2]
[388442883,1759170204534,-554.92,0.00023332,2]
[388442884,1759170204564,-480.0,0.00023332,2]
[388442885,1759170204595,-407.17546475,0.00023332,2]
[388442886,1759170204623,-172.67584887,0.00023332,2]
[388442887,1759170204654,-500.0,0.00023332,2]
[388442888,1759170204684,-500.0,0.00023332,2]
[388442889,1759170204713,-249.53188691,0.00023332,2]
[388442890,1759170204740,-480.0,0.00023332,2]
[388442891,1759170204767,-500.0,0.00023332,2]
[388442892,1759170204793,-480.0,0.00023333,2]
[388442893,1759170204821,-480.0,0.00023333,2]
[388442894,1759170205320,-20.0,0.00023333,2]
[388442895,1759170205333,-71.40359894,0.00023333,2]
[388442897,1759170212711,-480.0,0.00023323,2]
[388442898,1759170212742,-388.59640106,0.00023333,2]
[388442899,1759170212772,-480.0,0.00023333,2]
[388442900,1759170212802,-480.0,0.00023333,2]
[388442901,1759170212832,-480.0,0.00023333,2]
[388442902,1759170212867,-696.44,0.00023333,2]
[388442903,1759170212899,-480.0,0.00023333,2]
[388442904,1759170212930,-532.67,0.00023333,2]
[388442905,1759170212962,-437.44316648,0.00023333,2]
[388442906,1759170212993,-77.49086492,0.00023333,2]
[388442907,1759170213111,-934.72913508,0.00023333,2]
[388442908,1759170213145,-612.84,0.00023333,2]
[388442909,1759170213178,-480.0,0.00023333,2]
[388442910,1759170213212,-2227.87,0.00023333,2]
[388442911,1759170213243,-300.96172984,0.00023333,2]
[388442912,1759170213493,-633.76740524,0.00023333,2]
[388442913,1759170213516,-253.44086492,0.00023333,2]
[388442914,1759170213525,-480.0,0.00023333,2]
[388442915,1759170213535,-454.72913508,0.00023333,2]
[388442916,1759170222765,-25.27086492,0.00023333,2]
[388442917,1759170222796,-480.0,0.00023333,2]
[388442918,1759170222850,-8989.46827016,0.00023333,2]
[388442919,1759170222884,-10000.01,0.00023333,2]
[388442920,1759170223069,-480.0,0.00023323,2]
[388442921,1759170223097,-1160.37167343,0.00023333,2]
[388442922,1759170223129,-6719.26665314,0.00023333,2]
[388442923,1759170223195,-481.46208121,0.00023333,2]
[388442924,1759170223227,-3550.34,0.00023333,2]
[388442925,1759170223257,-480.0,0.00023333,2]
[388442926,1759170223287,-480.0,0.00023333,2]
[388442927,1759170223473,-16.40583758,0.00023333,2]
[388442928,1759170226215,-463.59416242,0.00023333,2]
[388442929,1759170226243,-505.31,0.00023333,2]
[388442930,1759170226271,-3612.59,0.00023333,2]
[388442931,1759170226300,-357.02167516,0.00023333,2]
[388442932,1759170226363,-122.97832484,0.00023333,2]
[388442933,1759170226399,-480.0,0.00023333,2]
[388442934,1759170226426,-912.15,0.00023333,2]
[388442935,1759170226456,-1311.85,0.00023333,2]
[388442936,1759170226485,-480.0,0.00023333,2]
[388442937,1759170226512,-590.97,0.00023333,2]
[388442938,1759170226539,-480.0,0.00023333,2]
[388442939,1759170226567,-480.0,0.00023333,2]
[388442940,1759170226596,-50.07,0.00023333,2]
[388442941,1759170226712,-429.93,0.00023333,2]
[388442942,1759170226933,-625.5,0.00023333,2]
[388442943,1759170226968,-480.0,0.00023333,2]
[388442944,1759170227000,-2727.22,0.00023333,2]
[388442945,1759170227027,-480.0,0.00023333,2]
[388442946,1759170227114,-956.38,0.00023333,2]
[388442947,1759170227140,-480.0,0.00023333,2]
[388442948,1759170227166,-890.95,0.00023333,2]
[388442949,1759170227192,-502.54,0.00023333,2]
[388442950,1759170227218,-1361.9,0.00023333,2]
[388442951,1759170227244,-496.56,0.00023333,2]
[388442952,1759170227596,-450.09,0.00023333,2]
[388442953,1759170227616,-173.26,0.00023333,2]
[388442954,1759170227626,-946.65,0.00023333,2]
[388442955,1759170235137,-480.0,0.00023323,2]
[388442956,1759170235165,-1.53,0.00023333,2]
[388442957,1759170235193,-2157.21,0.00023333,2]
[388442958,1759170235221,-480.0,0.00023333,2]
[388442959,1759170235248,-480.0,0.00023333,2]
[388442960,1759170235283,-714.76,0.00023333,2]
[388442961,1759170235307,-480.0,0.00023333,2]
[388442962,1759170235437,-168.0,0.0002287,2]
[388442963,1759170235448,-245.01,0.00023333,2]
[388442964,1759170235646,-234.99,0.00023333,2]
[388442965,1759170235676,-1000.38,0.00023333,2]
[388442966,1759170235705,-480.0,0.00023333,2]
[388442967,1759170235732,-480.0,0.00023333,2]
[388442968,1759170235759,-480.0,0.00023333,2]
[388442969,1759170235787,-500.0,0.00023334,2]
[388442970,1759170235816,-480.0,0.00023334,2]
[388442971,1759170235843,-490.11,0.00023334,2]
[388442972,1759170235870,-480.0,0.00023334,2]
[388442973,1759170235901,-269.05,0.00023334,2]
[388442974,1759170236422,-210.95,0.00023334,2]
[388442975,1759170236450,-554.08,0.00023334,2]
[388442976,1759170236478,-493.24,0.00023334,2]
[388442977,1759170236508,-480.0,0.00023334,2]
[388442978,1759170236536,-480.0,0.00023334,2]
[388442979,1759170236565,-480.0,0.00023334,2]
[388442980,1759170236592,-504.06509231,0.00023334,2]
[388442981,1759170236619,-480.0,0.00023334,2]
[388442982,1759170236646,-1158.18,0.00023334,2]
[388442983,1759170236781,-480.0,0.00023334,2]
[388442984,1759170236823,-480.0,0.00023334,2]
[388442985,1759170236850,-480.0,0.00023334,2]
[388442986,1759170236879,-704.34,0.00023334,2]
[388442987,1759170236906,-699.06,0.00023334,2]
[388442988,1759170236935,-519.97,0.00023334,2]
[388442989,1759170236966,-1527.5,0.00023334,2]
[388442990,1759170237442,-480.0,0.00023334,2]
[388442991,1759170237451,-73.99490769,0.00023334,2]
[388442992,1759170237464,-218.27,0.00023334,2]
[388442993,1759170252830,-2149.83286048,0.00023324,2]
[388442994,1759170252855,-5700.34427904,0.00023324,2]
[388442995,1759170252950,-300.0,0.00023332,2]
[388442996,1759170252981,-277.25765212,0.00023332,2]
[388442997,1759170253009,-500.0,0.00023332,2]
[388442998,1759170253036,-500.0,0.00023332,2]
[388442999,1759170253065,-500.0,0.00023332,2]
[388443000,1759170253093,-339.02397238,0.00023332,2]
[388443001,1759170253122,-339.02397238,0.00023332,2]
[388443002,1759170253150,-674.99,0.00023333,2]
[388443003,1759170253180,-1220.05,0.00023333,2]
[388443004,1759170253328,-1109.92,0.00023333,2]
[388443005,1759170253355,-480.0,0.00023333,2]
[388443006,1759170253383,-1463.86,0.00023333,2]
[388443007,1759170253411,-187.73509231,0.00023334,2]
[388443008,1759170253437,-480.0,0.00023334,2]
[388443009,1759170253466,-697.72,0.00023334,2]
[388443010,1759170253491,-480.0,0.00023334,2]
[388443011,1759170253586,-1918.8,0.00023334,2]
[388443012,1759170253614,-480.0,0.00023334,2]
[388443013,1759170253641,-480.0,0.00023334,2]
[388443014,1759170253667,-480.0,0.00023334,2]
[388443015,1759170253695,-480.0,0.00023334,2]
[388443016,1759170253735,-113.16,0.00023334,2]
[388443017,1759170253822,-2096.09,0.00023334,2]
[388443018,1759170253852,-537.59,0.00023334,2]
[388443019,1759170253878,-480.0,0.00023334,2]
[388443020,1759170253914,-480.0,0.00023334,2]
[388443021,1759170253943,-480.0,0.00023334,2]
[388443022,1759170253970,-760.31,0.00023334,2]
[388443023,1759170254183,-480.0,0.00023334,2]
[388443024,1759170254211,-480.0,0.00023334,2]
[388443025,1759170254240,-1446.08,0.00023334,2]
[388443026,1759170254269,-631.16,0.00023334,2]
[388443027,1759170254297,-1373.43,0.00023334,2]
[388443028,1759170254326,-480.0,0.00023334,2]
[388443029,1759170254438,-2134.92,0.00023334,2]
[388443030,1759170254467,-480.0,0.00023334,2]
[388443031,1759170254495,-480.0,0.00023334,2]
[388443032,1759170254522,-480.0,0.00023334,2]
[388443033,1759170254550,-480.0,0.00023334,2]
[388443034,1759170254578,-480.0,0.00023334,2]
[388443035,1759170254609,-450.17,0.00023334,2]
[388443036,1759170255317,-29.83,0.00023334,2]
[388443037,1759170255327,-667.64862162,0.00023334,2]
[388443038,1759170255340,-480.0,0.00023334,2]
[388443039,1759170255367,-480.0,0.00023334,2]
[388443040,1759170255385,-480.0,0.00023334,2]
[388443041,1759170255404,-480.0,0.00023334,2]
[388443042,1759170255417,-480.0,0.00023334,2]
[388443043,1759170255431,-480.0,0.00023334,2]
[388443045,1759170262819,-1281.93422812,0.00023234,2]
[388443046,1759170262845,-480.0,0.00023323,2]
[388443047,1759170262871,-1083.08016538,0.00023334,2]
[388443048,1759170262973,-4309.981213,0.00023334,2]
[388443049,1759170263045,-480.0,0.00023334,2]
[388443050,1759170263074,-596.62,0.00023334,2]
[388443051,1759170263101,-480.0,0.00023334,2]
[388443052,1759170263130,-2070.9,0.00023334,2]
[388443053,1759170263157,-480.0,0.00023334,2]
[388443054,1759170263185,-480.0,0.00023334,2]
[388443055,1759170263272,-2942.17,0.00023334,2]
[388443056,1759170263300,-480.0,0.00023334,2]
[388443057,1759170263328,-480.0,0.00023334,2]
[388443058,1759170263359,-909.13,0.00023334,2]
[388443059,1759170263469,-732.39,0.00023334,2]
[388443060,1759170263497,-609.56,0.00023334,2]
[388443061,1759170263526,-2025.3,0.00023334,2]
[388443062,1759170263554,-480.0,0.00023334,2]
[388443063,1759170263583,-594.35,0.00023334,2]
[388443064,1759170263740,-1116.81,0.00023334,2]
[388443065,1759170263768,-749.55,0.00023334,2]
[388443066,1759170263796,-998.99,0.00023334,2]
[388443067,1759170263824,-480.0,0.00023334,2]
[388443068,1759170263853,-496.56,0.00023334,2]
[388443069,1759170263881,-566.5,0.00023334,2]
[388443070,1759170263915,-557.36,0.00023334,2]
[388443071,1759170264040,-1255.96,0.00023334,2]
[388443072,1759170264068,-1162.11,0.00023334,2]
[388443073,1759170264095,-480.0,0.00023334,2]
[388443074,1759170264125,-480.0,0.00023334,2]
[388443075,1759170264449,-277.4,0.00023334,2]
[388443076,1759170264468,-1162.11,0.00023334,2]
[388443077,1759170264482,-480.0,0.00023334,2]
[388443078,1759170264678,-480.0,0.00023334,2]
[388443079,1759170264692,-2246.08,0.00023334,2]
[388443080,1759170264702,-997.79,0.00023335,2]
[388443100,1759170282874,-689.84,0.00023323,2]
[388443101,1759170282902,-1003.27,0.00023323,2]
[388443102,1759170282930,-480.0,0.00023333,2]
[388443103,1759170282964,-480.0,0.00023333,2]
[388443104,1759170282993,-581.46,0.00023333,2]
[388443105,1759170283021,-518.31,0.00023333,2]
[388443106,1759170283046,-408.69703234,0.00023333,2]
[388443107,1759170283070,-480.0,0.00023333,2]
[388443108,1759170283095,-236.85593532,0.00023333,2]
[388443109,1759170283221,-243.14406468,0.00023333,2]
[388443110,1759170283250,-553.52802134,0.00023334,2]
[388443111,1759170283276,-480.0,0.00023334,2]
[388443112,1759170283304,-2024.98,0.00023334,2]
[388443113,1759170283329,-1744.64395732,0.00023334,2]
[388443114,1759170283400,-393.70604268,0.00023334,2]
[388443115,1759170283428,-712.62,0.00023334,2]
[388443116,1759170283455,-285.02282532,0.00023334,2]
[388443117,1759170283482,-2.21,0.00023335,2]
[388443118,1759170283510,-1000.0,0.00023335,2]
[388443119,1759170283536,-1000.0,0.00023335,2]
[388443120,1759170283563,-544.86562885,0.00023335,2]
[388443121,1759170283813,-393.70604268,0.00023335,2]
[388443122,1759170283827,-2123.1610063,0.00023335,2]
[388443123,1759170283858,-10000.01,0.00023335,2]
[388443124,1759170283895,-10000.01,0.00023335,2]
[388443125,1759170283910,-10000.01,0.00023335,2]
[388443126,1759170315405,-1673.74311825,0.00022859,13]
[388443127,1759170315437,-157.71852885,0.0002309,13]
[388443128,1759170315472,-2205.32,0.00023323,2]
[388443129,1759170315509,-607.31,0.00023323,2]
[388443130,1759170315547,-231.8267058,0.00023323,2]
[388443131,1759170315663,-248.1732942,0.00023323,2]
[388443132,1759170315710,-1200.0,0.00023331,2]
[388443133,1759170315743,-300.0,0.00023332,2]
[388443134,1759170315778,-300.0,0.00023332,2]
[388443135,1759170315812,-300.0,0.00023332,2]
[388443136,1759170315848,-534.26,0.00023333,2]
[388443137,1759170316116,-889.34,0.00023333,2]
[388443138,1759170316149,-826.52,0.00023333,2]
[388443139,1759170316178,-538.94,0.00023333,2]
[388443140,1759170316378,-480.0,0.00023333,2]
[388443141,1759170316413,-480.0,0.00023333,2]
[388443142,1759170316449,-695.64,0.00023333,2]
[388443143,1759170316484,-480.0,0.00023333,2]
[388443144,1759170316519,-2137.2,0.00023333,2]
[388443145,1759170316555,-480.0,0.00023333,2]
[388443146,1759170316589,-14.33,0.00023333,2]
[388443147,1759170316696,-465.67,0.00023333,2]
[388443148,1759170316728,-679.51,0.00023333,2]
[388443149,1759170316758,-536.12,0.00023333,2]
[388443150,1759170316790,-517.26,0.00023333,2]
[388443151,1759170316823,-480.0,0.00023334,2]
[388443152,1759170316855,-480.0,0.00023334,2]
[388443153,1759170316885,-1053.71,0.00023334,2]
[388443154,1759170316918,-678.24,0.00023334,2]
[388443155,1759170317804,-9.32,0.00023334,2]
[388443156,1759170317831,-470.68,0.00023334,2]
[388443157,1759170317842,-207.56,0.00023334,2]
[388443158,1759170317873,-218.99,0.00023334,2]
[388443159,1759170323009,-326.42169759,0.00023101,13]
[388443160,1759170323043,-3536.9,0.00023323,2]
[388443161,1759170323075,-480.0,0.00023323,2]
[388443162,1759170323151,-1313.36660482,0.00023334,2]
[388443163,1759170323184,-429.90339518,0.00023334,2]
[388443164,1759170323214,-4269.97320964,0.00023334,2]
[388443165,1759170323256,-600.25679036,0.00023334,2]
[388443166,1759170323315,-480.0,0.00023334,2]
[388443167,1759170323343,-480.0,0.00023334,2]
[388443168,1759170323373,-896.9,0.00023334,2]
[388443169,1759170323406,-500.0,0.00023334,2]
[388443170,1759170323492,-5286.21,0.00023335,2]
[388443171,1759170323535,-10000.01,0.00023335,2]
[388443176,1759170390106,-169.86856713,0.00023222,2]
[388443177,1759170390127,-102.9365256,0.00023321,2]
[388443185,1759170517113,-360.37186939,0.0002,2]
[388443187,1759170520896,-590.58,0.0002,2]
[388443188,1759170523480,-480.0,0.0002,2]
[388443189,1759170533564,-170.67103699,0.0002,2]
[388443190,1759170535707,-160.0,0.0002,2]
[388443191,1759170538458,-300.0,0.0002,2]
[388443192,1759170542020,-163.33869558,0.0002,2]
[388443193,1759170544160,-276.95595076,0.00019999,2]
[388443195,1759170546419,-23.04404924,0.00019999,2]
[388443196,1759170546444,-409.87530179,0.0002,2]
[388443197,1759170549118,-236.07597477,0.0002,2]
[388443198,1759170551289,-489.92513588,0.0002,2]
[388443199,1759170554044,-1023.76387337,0.0002,2]
[388443200,1759170558430,-1024.73054007,0.0002,2]
[388443201,1759170561423,-228.6412665,0.0002,2]
[388443202,1759170566821,-300.0,0.0002,2]
[388443203,1759170569822,-237.7871103,0.0002,2]
[388443204,1759170573155,-190.98686411,0.0002,2]